fUST/lending_fUST_20250821
["ID","MTS","AMOUNT","RATE_DAILY","PERIOD"]
[380438262,1755768183718,400.0,0.00024658,120]
[380438263,1755768184106,400.0,0.00027397,120]
[380438264,1755768195832,158.0,0.00027325,120]
[380438265,1755768198261,723.3244774,0.00027325,120]
[380438268,1755768212987,750.846,0.00027332,120]
[380438270,1755768232972,1000.0,0.00019823,2]
[380438271,1755768234221,1000.0,0.00027397,120]
[380438272,1755768245768,393.0,0.00027325,60]
[380438273,1755768246176,392.0,0.00027325,60]
[380438274,1755768258353,150.0,0.00019817,2]
[380438275,1755768322644,6222.4374398,0.00019848,2]
[380438277,1755768348465,157.600824,0.00013699,2]
[380438278,1755768357125,-1929.6898673,0.00019848,2]
[380438280,1755768372281,767.0,0.00027397,120]
[380438281,1755768392497,500.0,0.00026027,120]
[380438282,1755768392768,500.0,0.00026027,120]
[380438283,1755768393018,500.0,0.00026027,120]
[380438284,1755768393263,500.0,0.00026027,120]
[380438285,1755768393496,500.0,0.00026027,120]
[380438286,1755768394656,500.0,0.00026027,120]
[380438287,1755768394929,500.0,0.00026027,120]
[380438288,1755768395197,500.0,0.00026027,120]
[380438289,1755768395428,500.0,0.00026027,120]
[380438290,1755768395816,500.0,0.00026027,120]
[380438291,1755768395908,500.0,0.00026027,120]
[380438292,1755768396148,500.0,0.00026027,120]
[380438293,1755768396396,500.0,0.00026027,120]
[380438294,1755768396812,500.0,0.00026027,120]
[380438295,1755768397103,500.0,0.00026027,120]
[380438296,1755768400293,500.0,0.00026027,120]
[380438297,1755768400500,500.0,0.00026027,120]
[380438298,1755768400736,500.0,0.00026027,120]
[380438299,1755768400968,500.0,0.00026027,120]
[380438300,1755768401311,500.0,0.00026027,120]
[380438301,1755768401586,500.0,0.00026027,120]
[380438302,1755768401835,500.0,0.00026027,120]
[380438303,1755768402063,271.36830691,0.00026027,120]
[380438305,1755768444116,207.91600099,0.00027325,60]
[380438306,1755768457077,16605.07465544,0.00026,120]
[380438307,1755768463984,1093.68126338,0.00027325,120]
[380438308,1755768465614,278.8887367,0.00027325,120]
[380438309,1755768487422,858.89520484,0.00027325,120]
[380438310,1755768491776,314.83299661,0.00027325,120]
[380438311,1755768492987,762.59211652,0.00027325,120]
[380438312,1755768493569,976.94228898,0.00027325,120]
[380438313,1755768495509,400.0,0.00021918,120]
[380438314,1755768495815,1057.05809576,0.00027325,120]
[380438315,1755768495844,400.0,0.00024658,120]
[380438316,1755768496167,400.0,0.00027397,120]
[380438317,1755768501772,927.66972424,0.00027325,120]
[380438318,1755768503777,1000.0,0.00027397,120]
[380438319,1755768504133,643.34405261,0.00027325,120]
[380438320,1755768505237,999.999998,0.00027325,120]
[380438321,1755768507656,901.45525125,0.00027325,60]
[380438322,1755768509045,550.78718792,0.00027325,120]
[380438323,1755768509658,855.66094099,0.00027325,120]
[380438324,1755768510435,774.68451888,0.00027325,120]
[380438325,1755768510543,699.60225536,0.00027325,120]
[380438326,1755768511380,288.15510665,0.00027325,120]
[380438327,1755768511854,240.82074905,0.00027325,120]
[380438328,1755768512567,431.04543155,0.00025,120]
[380438329,1755768513131,245.25582475,0.00027325,120]
[380438330,1755768514007,337.06515428,0.00027325,120]
[380438331,1755768514960,342.83650058,0.00027325,120]
[380438332,1755768515483,500.80333459,0.00025,120]
[380438333,1755768515555,522.07277302,0.00024108,120]
[380438334,1755768515845,217.59934883,0.00025,120]
[380438335,1755768516523,561.50271236,0.00027325,120]
[380438336,1755768517666,1020.46818007,0.00027325,120]
[380438338,1755768518063,401.34780283,0.00027325,120]
[380438339,1755768518092,815.07817732,0.00027325,120]
[380438340,1755768518859,204.86819429,0.00027,120]
[380438341,1755768519027,723.42240983,0.00027325,120]
[380438342,1755768519229,431.98040146,0.00027325,120]
[380438343,1755768519266,531.02351177,0.00027325,120]
[380438344,1755768519387,218.65179477,0.00027325,120]
[380438345,1755768520546,320.99964673,0.00027325,120]
[380438346,1755768520691,206.34477253,0.00027325,120]
[380438347,1755768521790,290.05472994,0.00027397,120]
[380438348,1755768522015,164.62388697,0.00027325,120]
[380438349,1755768522044,221.58161726,0.0001536,120]
[380438350,1755768522603,539.05755644,0.00027325,120]
[380438351,1755768522693,503.76512,0.00027325,120]
[380438353,1755768523263,1022.76283935,0.00027325,120]
[380438354,1755768523488,222.17362777,0.00027325,120]
[380438355,1755768524064,187.29798774,0.0002739,120]
[380438356,1755768524092,191.08626108,0.0002739,120]
[380438357,1755768524360,406.21291926,0.00027325,120]
[380438358,1755768524418,710.43086293,0.00026,120]
[380438359,1755768524652,309.78502125,0.00026,120]
[380438360,1755768524845,424.90677713,0.00025,120]
[380438361,1755768525479,190.57461159,0.00027,120]
[380438362,1755768525517,202.37317621,0.00027325,120]
[380438365,1755768526005,432.53553805,0.00027325,120]
[380438366,1755768526231,1005.71218375,0.00027325,120]
[380438367,1755768526271,630.12275723,0.00027325,120]
[380438368,1755768529552,1000.0,0.00027397,120]
[380438372,1755768535650,1000.0,0.00027397,120]
[380438373,1755768543184,1000.0,0.00027397,120]
[380438374,1755768550164,-1016.3084625,0.00019848,2]
[380438375,1755768550185,-729.6854354,0.00019861,2]
[380438376,1755768550204,-7264.13594111,0.0002,2]
[380438377,1755768550224,-300.0,0.00020141,2]
[380438378,1755768550243,-300.0,0.00020141,2]
[380438379,1755768550265,-162.63870684,0.00020142,2]
[380438380,1755768550285,-300.0,0.00020142,2]
[380438381,1755768550306,-1200.0,0.00020142,2]
[380438382,1755768550325,-1073.0,0.00020142,2]
[380438383,1755768550347,-4415.781717,0.00020143,2]
[380438384,1755768551573,1000.0,0.00027397,120]
[380438385,1755768592432,1000.0,0.00027397,120]
[380438389,1755768598783,1000.0,0.00027397,120]
[380438390,1755768604834,1000.0,0.00027397,120]
[380438391,1755768611790,1000.0,0.00027397,120]
[380438392,1755768617970,1000.0,0.00027397,120]
[380438393,1755768625789,1000.0,0.00027397,120]
[380438440,1755768631930,-666.0,0.00019866,2]
[380438442,1755768631939,-300.0,0.00020142,2]
[380438444,1755768631947,-1200.0,0.00020142,2]
[380438446,1755768631956,-610.28091887,0.00020143,2]
[380438448,1755768631966,-5584.218283,0.00020143,2]
[380438452,1755768631975,-150.71364408,0.00020143,2]
[380438455,1755768631984,-161.431705,0.00020181,2]
[380438458,1755768631993,-873.0,0.00020375,2]
[380438460,1755768632002,-168.0,0.00020512,2]
[380438462,1755768632011,-157.600824,0.00020548,2]
[380438464,1755768632021,-7407.141672,0.00020806,2]
[380438466,1755768632030,-7681.20591386,0.00020861,2]
[380438467,1755768632039,-7965.41053268,0.00020916,2]
[380438469,1755768632049,-168.0,0.00020918,2]
[380438471,1755768632063,-1891.15614714,0.00020971,2]
[380438474,1755768632083,-898.48,0.00020971,2]
[380438476,1755768632095,-1247.31331951,0.00020971,2]
[380438478,1755768632107,-4223.18125574,0.00020971,2]
[380438480,1755768632118,-179.67658215,0.00020986,2]
[380438483,1755768632129,-3039.23200227,0.00021026,2]
[380438560,1755768637993,-4617.20126453,0.00021026,2]
[380438561,1755768638004,-461.985,0.00021026,2]
[380438562,1755768639827,-447.33729231,0.00021026,2]
[380438563,1755768639837,-3285.49583313,0.00021078,2]
[380438564,1755768639846,-2100.62822619,0.00021081,2]
[380438565,1755768639885,-6782.06028861,0.00021081,2]
[380438566,1755768639894,-800.0,0.0002113,2]
[380438567,1755768639904,-9211.34798985,0.00021136,2]
[380438568,1755768639914,-151.71174768,0.00021151,2]
[380438569,1755768639923,-482.66,0.00021155,10]
[380438570,1755768639933,-500.0,0.00021158,2]
[380438571,1755768639942,-1000.0,0.00021165,2]
[380438572,1755768639951,-1000.0,0.00021165,2]
[380438573,1755768639961,-151.0,0.00021165,2]
[380438574,1755768639970,-1000.0,0.00021165,2]
[380438575,1755768639980,-300.0,0.00021165,2]
[380438576,1755768639989,-300.0,0.00021165,2]
[380438577,1755768639999,-1000.0,0.00021165,2]
[380438578,1755768640008,-1000.0,0.00021165,2]
[380438579,1755768640017,-1000.0,0.00021165,2]
[380438580,1755768640027,-1000.0,0.00021165,2]
[380438581,1755768640036,-1000.0,0.00021165,2]
[380438582,1755768640045,-1000.0,0.00021165,2]
[380438584,1755768640054,-6405.09742752,0.00021165,2]
[380438592,1755768642786,-2398.01916527,0.00021165,2]
[380438593,1755768642844,-487.53571667,0.00021165,2]
[380438612,1755768645774,-2230.55386598,0.00021165,2]
[380438613,1755768645991,-1572.54466121,0.00021165,2]
[380438615,1755768654358,1000.0,0.00027397,120]
[380438616,1755768669511,1000.0,0.00027397,120]
[380438617,1755768680829,1000.0,0.00027397,120]
[380438619,1755768696798,530.11547,0.00027397,120]
[380438620,1755768701644,550.0,0.000273,120]
[380438621,1755768723417,174.530943,0.00020345,120]
[380438629,1755768804382,400.0,0.00024658,120]
[380438630,1755768804453,400.0,0.00027397,120]
[380438632,1755768872119,200.0,0.00026493,120]
[380438641,1755768931401,200.0,0.00027145,120]
[380438642,1755769032106,163.036598,0.00019897,120]
[380438645,1755769110021,445.29042072,0.00024658,120]
[380438648,1755769224905,1028.0,0.00027397,120]
[380438649,1755769231494,200.0,0.00027069,120]
[380438650,1755769297046,217.0,0.00019576,2]
[380438651,1755769301893,550.0,0.000273,120]
[380438652,1755769324888,160.255131,0.00013699,2]
[380438657,1755769536096,-691.3440597,0.00019665,2]
[380438658,1755769536117,-262.0,0.00019759,2]
[380438659,1755769536137,-300.0,0.00019759,2]
[380438660,1755769536158,-919.09642275,0.00019759,2]
[380438661,1755769633087,-280.90357725,0.00019759,2]
[380438662,1755769633110,-300.0,0.00019759,2]
[380438663,1755769633130,-10000.0,0.0001976,2]
[380438664,1755769633152,-217.0,0.00019911,2]
[380438665,1755769633173,-217.0,0.00020029,2]
[380438666,1755769633194,-217.0,0.00020097,2]
[380438667,1755769633213,-161.431705,0.00020137,2]
[380438668,1755769633234,-234.0,0.00020156,2]
[380438669,1755769633255,-217.0,0.00020175,2]
[380438670,1755769633275,-341.823138,0.00020181,2]
[380438671,1755769633298,-168.0,0.00020191,2]
[380438672,1755769633320,-174.530943,0.00020345,2]
[380438673,1755769633342,-234.0,0.00020486,2]
[380438674,1755769633363,-234.0,0.00020602,2]
[380438675,1755769633384,-168.0,0.00020704,2]
[380438676,1755769633405,-234.0,0.00020722,2]
[380438677,1755769633426,-1914.02551484,0.00020806,2]
[380438678,1755769640089,-884.87014498,0.00020806,2]
[380438679,1755769651087,-1008.87457906,0.00020806,2]
[380438682,1755769805359,1000.0,0.00027,120]
[380438683,1755769806333,1000.0,0.00027,120]
[380438751,1755769832101,-256.367354,0.00019945,2]
[380438752,1755769832111,-6.21306345,0.00020841,2]
[380438939,1755769838216,-227.78693655,0.00020841,2]
[380438940,1755769838225,-300.0,0.0002086,2]
[380438941,1755769838235,-1173.62582768,0.0002086,2]
[380438942,1755769838246,-26.37417232,0.0002086,2]
[380438943,1755769838256,-223.2979379,0.00020902,2]
[380438944,1755769838265,-705.9418722,0.00020902,2]
[380438945,1755769838275,-157.6220739,0.00020902,2]
[380438947,1755769838283,-3000.46478398,0.00020926,2]
[380438948,1755769838293,-160.255131,0.00020951,2]
[380438949,1755769838302,-179.67658215,0.00020986,2]
[380438950,1755769838312,-498.75,0.0002099,10]
[380438951,1755769838321,-415.62,0.0002099,10]
[380438952,1755769838331,-500.0,0.00020999,2]
[380438953,1755769838340,-500.0,0.00020999,2]
[380438954,1755769838350,-506.15245425,0.00020999,2]
[380438955,1755769838359,-171.6936672,0.00020999,2]
[380438957,1755769838368,-500.0,0.00020999,2]
[380438959,1755769838378,-500.0,0.00020999,2]
[380438961,1755769838388,-500.0,0.00020999,2]
[380438963,1755769838397,-500.0,0.00020999,2]
[380438965,1755769838406,-210.44918276,0.00020999,2]
[380438967,1755769838415,-500.0,0.00020999,2]
[380438969,1755769838424,-500.0,0.00020999,2]
[380438970,1755769838433,-741.5433753,0.00021,2]
[380438973,1755769838445,-687.25246163,0.00021,2]
[380438975,1755769838454,-8564.81183783,0.00021,2]
[380438977,1755769838465,-7863.51640625,0.00021,2]
[380438979,1755769838479,-1000.9999859,0.00021,2]
[380438983,1755769838502,-1083.99525696,0.00021,2]
[380439001,1755769839961,-318.23649186,0.00021,2]
[380439002,1755769840015,-386.30706356,0.00021,2]
[380439003,1755769840070,-1560.65807544,0.00021,2]
[380439004,1755769840082,-3178.24096322,0.00021,2]
[380439005,1755769840094,-1506.69227202,0.00021,2]
[380439011,1755769840299,-3431.45766972,0.00021,2]
[380439024,1755769843276,-241.38227583,0.00021,2]
[380439032,1755769846077,-351.57943091,0.00021,2]
[380439033,1755769846131,-67603.16495535,0.00021,2]
[380439037,1755769846186,-480.0,0.00021,2]
[380439043,1755770066332,150.0,0.000189,2]
[380439044,1755770137555,400.0,0.0002739,120]
[380439045,1755770154776,400.0,0.00020989,120]
[380439046,1755770275144,3795.22,0.00027335,60]
[380439047,1755770327813,160.255131,0.00013699,2]
[380439048,1755770349628,1000.0,0.00019595,2]
[380439050,1755770556913,316.60273837,0.00027397,120]
[380439052,1755770589391,250.0,0.00019599,2]
[380439054,1755770599560,1381.41903172,0.0002739,120]
[380439057,1755770619629,1444.0,0.00026137,120]
[380439058,1755770727748,-321.07963994,0.00019623,2]
[380439059,1755770733279,-277.33511143,0.00019623,2]
[380439060,1755770751826,220.0,0.00019367,2]
[380439061,1755770752223,220.0,0.00018653,2]
[380439062,1755770825138,-499.61686952,0.00019623,2]
[380439063,1755770840084,-958.99171783,0.00019623,2]
[380439064,1755770848373,315.68,0.00027335,60]
[380439065,1755770888659,4300.39010405,0.00019599,2]
[380439066,1755770897105,1872.82817102,0.00019599,2]
[380439067,1755770897128,3127.17182898,0.00019599,2]
[380439068,1755770905515,172.05324482,0.00019599,2]
[380439069,1755770914319,317.532079,0.0001908,2]
[380439070,1755770946802,666.0,0.00019178,2]
[380439071,1755770961607,-518.34718515,0.00019623,2]
[380439072,1755770971732,1412.1552826,0.00019063,2]
[380439073,1755771026816,242.42,0.00027397,120]
[380439109,1755771032599,-69.36006753,0.00019623,2]
[380439110,1755771032608,-220.0,0.00019767,2]
[380439111,1755771032617,-184.13304,0.00019863,2]
[380439112,1755771032627,-4017.90488891,0.00019874,2]
[380439113,1755771032636,-472.18617037,0.000199,2]
[380439114,1755771032646,-1200.0,0.00019973,2]
[380439115,1755771032656,-4048.4118505,0.00019974,2]
[380439116,1755771032665,-300.0,0.00019997,2]
[380439117,1755771032674,-300.0,0.00019997,2]
[380439118,1755771032683,-300.0,0.00019997,2]
[380439119,1755771032693,-1054.0,0.00019998,2]
[380439120,1755771032702,-6974.7,0.0002,2]
[380439121,1755771032712,-18352.56,0.000207,2]
[380439122,1755771032721,-11279.60705787,0.000207,2]
[380439123,1755771032754,-12415.99995756,0.000207,2]
[380439175,1755771038250,-302.0,0.000207,2]
[380439178,1755771038304,-2552.57520107,0.000207,2]
[380439215,1755771040253,-1643.02780296,0.000207,2]
[380439216,1755771040267,-887.80170412,0.000207,2]
[380439217,1755771040280,-3941.26360266,0.000207,2]
[380439218,1755771040312,-11626.1434169,0.000207,2]
[380439220,1755771040322,-2867.80670502,0.00020706,2]
[380439221,1755771040332,-527.94042554,0.00020821,2]
[380439222,1755771040341,-472.18617028,0.00020835,2]
[380439223,1755771040351,-7407.141672,0.00020886,2]
[380439224,1755771040363,-346.35,0.00020889,10]
[380439225,1755771040372,-288.22,0.0002089,3]
[380439226,1755771040382,-864.66,0.0002089,3]
[380439227,1755771040391,-500.0,0.00020899,2]
[380439228,1755771040401,-500.0,0.00020899,2]
[380439229,1755771040411,-500.0,0.00020899,2]
[380439230,1755771040420,-500.0,0.00020899,2]
[380439231,1755771040430,-500.0,0.00020899,2]
[380439232,1755771040439,-500.0,0.00020899,2]
[380439233,1755771040449,-500.0,0.00020899,2]
[380439234,1755771040458,-603.05541417,0.00020899,2]
[380439235,1755771040468,-500.0,0.00020899,2]
[380439236,1755771040477,-500.0,0.00020899,2]
[380439237,1755771040486,-584.49664421,0.00020899,2]
[380439238,1755771040495,-174.83247957,0.00020899,2]
[380439239,1755771040504,-500.0,0.00020899,2]
[380439240,1755771040514,-500.0,0.00020899,2]
[380439241,1755771040523,-500.0,0.00020899,2]
[380439242,1755771040534,-500.0,0.00020899,2]
[380439243,1755771040543,-500.0,0.00020899,2]
[380439244,1755771040553,-496.27026964,0.00020899,2]
[380439245,1755771040562,-500.0,0.00020899,2]
[380439246,1755771040572,-413.78478839,0.00020899,2]
[380439247,1755771040581,-714.39791847,0.000209,2]
[380439248,1755771040591,-5495.28427352,0.000209,2]
[380439273,1755771046423,-2591.98704801,0.000209,2]
[380439274,1755771046531,-3620.71436714,0.000209,2]
[380439275,1755771048270,-671.34,0.0002089,10]
[380439276,1755771048280,-5.15551176,0.000209,2]
[380439277,1755771049475,2592.45444717,0.00019523,2]
[380439278,1755771141566,1712.63311743,0.00019178,2]
[380439279,1755771141588,3287.36688257,0.00019178,2]
[380439286,1755771206386,277.6,0.00027337,120]
[380439299,1755771321510,302.0,0.00027397,120]
[380439301,1755771402663,1444.0,0.00026137,120]
[380439303,1755771429348,200.0,0.00027397,120]
[380439304,1755771466470,151.0,0.00027397,120]
[380439305,1755771517371,151.0,0.00027397,120]
[380439307,1755771563697,184.4995034,0.00019553,2]
[380439308,1755771577436,151.0,0.00027397,120]
[380439309,1755771629480,161.791715,0.00013699,2]
[380439310,1755771650672,1929.6898673,0.00019178,2]
[380439311,1755771653356,4436.65203173,0.00018736,2]
[380439312,1755771653385,10000.0,0.00018736,2]
[380439313,1755771653410,2614.38886167,0.00018736,2]
[380439314,1755771724164,1753.2,0.00027397,120]
[380439319,1755771965874,507.0,0.00027397,120]
[380439320,1755771978240,158.76604,0.00018736,2]
[380439321,1755772008622,1000.0,0.000273,120]
[380439323,1755772032162,-188.41253449,0.00019636,2]
[380439324,1755772032183,-2509.33086691,0.00019637,2]
[380439325,1755772032204,-160.0,0.00019735,2]
[380439326,1755772032224,-300.0,0.00019735,2]
[380439327,1755772032245,-1200.0,0.00019735,2]
[380439328,1755772032267,-1200.0,0.00019735,2]
[380439329,1755772032287,-300.0,0.00019736,2]
[380439330,1755772032307,-300.0,0.00019736,2]
[380439331,1755772032328,-500.0,0.00019737,10]
[380439332,1755772032348,-3062.34510897,0.00019737,2]
[380439333,1755772057696,5000.0,0.00026,120]
[380439337,1755772116183,168.0,0.00027397,120]
[380439341,1755772143865,7226.84509833,0.00018883,2]
[380439342,1755772143889,10000.0,0.00018883,2]
[380439343,1755772143914,8877.48300557,0.00018883,2]
[380439344,1755772157184,-300.0,0.00019736,2]
[380439345,1755772157205,-500.0,0.00019737,2]
[380439346,1755772157226,-26755.48551855,0.00019737,2]
[380439347,1755772196541,818.33471887,0.00026137,120]
[380439360,1755772232632,-300.0,0.00019736,2]
[380439363,1755772232642,-171.0,0.00019736,2]
[380439366,1755772232651,-729.0,0.00019736,2]
[380439368,1755772232663,-471.0,0.00019736,2]
[380439372,1755772232672,-1234.55706863,0.00019737,2]
[380439374,1755772232683,-14793.33794141,0.00019737,2]
[380439426,1755772238443,-351.27555648,0.00019737,2]
[380439428,1755772238455,-1301.15061328,0.00019737,2]
[380439430,1755772238467,-5564.19330165,0.00019737,2]
[380439432,1755772238477,-500.0,0.00019737,2]
[380439433,1755772238487,-200.0,0.00019737,10]
[380439434,1755772238501,-200.0,0.00019737,10]
[380439435,1755772238510,-200.0,0.00019737,10]
[380439436,1755772238520,-200.0,0.00019737,10]
[380439437,1755772238530,-200.0,0.00019737,10]
[380439438,1755772238540,-200.0,0.00019737,10]
[380439439,1755772238550,-200.0,0.00019737,10]
[380439440,1755772238560,-200.0,0.00019737,10]
[380439441,1755772238571,-200.0,0.00019737,10]
[380439442,1755772238580,-200.0,0.00019737,10]
[380439443,1755772238589,-200.0,0.00019737,10]
[380439444,1755772238599,-200.0,0.00019737,10]
[380439445,1755772238608,-200.0,0.00019737,10]
[380439446,1755772238617,-200.0,0.00019737,10]
[380439447,1755772238627,-200.0,0.00019737,10]
[380439448,1755772238636,-15.75494679,0.00019737,10]
[380439449,1755772238657,-184.24505321,0.00019737,10]
[380439450,1755772238667,-200.0,0.00019737,10]
[380439451,1755772238677,-200.0,0.00019737,10]
[380439452,1755772238686,-200.0,0.00019737,10]
[380439453,1755772238696,-200.0,0.00019737,10]
[380439454,1755772238705,-200.0,0.00019737,10]
[380439455,1755772238714,-200.0,0.00019737,10]
[380439456,1755772238724,-167.90494679,0.00019737,10]
[380439457,1755772238735,-32.09505321,0.00019737,10]
[380439458,1755772238744,-200.0,0.00019737,10]
[380439459,1755772238753,-200.0,0.00019737,10]
[380439460,1755772238763,-200.0,0.00019737,10]
[380439461,1755772238772,-200.0,0.00019737,10]
[380439462,1755772238781,-200.0,0.00019737,10]
[380439463,1755772238791,-200.0,0.00019737,10]
[380439464,1755772238800,-200.0,0.00019737,10]
[380439465,1755772238810,-200.0,0.00019737,10]
[380439466,1755772238819,-200.0,0.00019737,10]
[380439467,1755772238828,-200.0,0.00019737,10]
[380439468,1755772238838,-200.0,0.00019737,10]
[380439469,1755772238848,-200.0,0.00019737,10]
[380439470,1755772238857,-200.0,0.00019737,10]
[380439472,1755772238867,-200.0,0.00019737,10]
[380439474,1755772238876,-200.0,0.00019737,10]
[380439476,1755772238887,-200.0,0.00019737,10]
[380439478,1755772238897,-200.0,0.00019737,10]
[380439480,1755772238906,-200.0,0.00019737,10]
[380439482,1755772238917,-200.0,0.00019737,10]
[380439484,1755772238926,-200.0,0.00019737,10]
[380439486,1755772238936,-200.0,0.00019737,10]
[380439488,1755772238945,-200.0,0.00019737,10]
[380439490,1755772238955,-200.0,0.00019737,10]
[380439492,1755772238964,-200.0,0.00019737,10]
[380439494,1755772238974,-200.0,0.00019737,10]
[380439496,1755772238984,-200.0,0.00019737,10]
[380439498,1755772238993,-200.0,0.00019737,10]
[380439500,1755772239002,-200.0,0.00019737,10]
[380439502,1755772239012,-200.0,0.00019737,10]
[380439504,1755772239022,-260.222926,0.00019737,10]
[380439506,1755772239031,-173.042823,0.00019863,2]
[380439508,1755772239039,-577.28299946,0.000199,2]
[380439510,1755772239048,-152.66491435,0.0002,7]
[380439512,1755772239058,-14479.40803904,0.0002,2]
[380439514,1755772239068,-15272.71473745,0.0002,2]
[380439516,1755772239078,-5463.63306518,0.0002,2]
[380439518,1755772239088,-1528.490382,0.0002,2]
[380439520,1755772239098,-1528.490382,0.0002,2]
[380439522,1755772239107,-1528.490382,0.0002,2]
[380439524,1755772239117,-1528.490382,0.0002,2]
[380439526,1755772239127,-540.92,0.0002,2]
[380439528,1755772239137,-297.372492,0.0002,2]
[380439530,1755772239149,-297.372492,0.0002,2]
[380439532,1755772239159,-297.372492,0.0002,2]
[380439534,1755772239168,-297.372492,0.0002,2]
[380439536,1755772239178,-168.351458,0.0002,2]
[380439538,1755772239188,-168.351458,0.0002,2]
[380439540,1755772239198,-168.351458,0.0002,2]
[380439542,1755772239207,-168.351458,0.0002,2]
[380439544,1755772239217,-151.0,0.0002,2]
[380439546,1755772239226,-500.0,0.00020011,2]
[380439548,1755772239236,-1817.06569998,0.00020101,2]
[380439550,1755772239246,-500.0,0.00020285,2]
[380439552,1755772239256,-7407.141672,0.00020409,2]
[380439555,1755772239266,-587.7886402,0.00020436,2]
[380439556,1755772239275,-505.45586549,0.00020451,2]
[380439558,1755772239285,-500.0,0.00020451,2]
[380439561,1755772239294,-500.0,0.00020451,2]
[380439563,1755772239304,-344.36952042,0.00020451,2]
[380439565,1755772239314,-19187.29552238,0.00020452,2]
[380439567,1755772239323,-1000.0,0.00020452,2]
[380439569,1755772239333,-151.0,0.00020452,2]
[380439571,1755772239343,-1000.0,0.00020452,2]
[380439573,1755772239353,-1000.0,0.00020452,2]
[380439575,1755772239363,-1000.0,0.00020452,2]
[380439577,1755772239373,-1000.0,0.00020452,2]
[380439579,1755772239382,-250.0,0.00020454,2]
[380439581,1755772239392,-151.0,0.00020463,2]
[380439582,1755772239402,-151.0,0.00020464,2]
[380439584,1755772239412,-151.0,0.00020464,2]
[380439586,1755772239422,-151.0,0.00020464,2]
[380439588,1755772239432,-151.0,0.00020464,2]
[380439590,1755772239442,-151.0,0.00020464,2]
[380439592,1755772239452,-151.0,0.00020464,2]
[380439594,1755772239462,-151.0,0.00020464,2]
[380439596,1755772239472,-151.0,0.00020464,2]
[380439598,1755772239482,-151.0,0.00020464,2]
[380439600,1755772239493,-151.0,0.00020464,2]
[380439602,1755772239504,-151.0,0.00020464,2]
[380439604,1755772239514,-151.0,0.00020464,2]
[380439606,1755772239524,-151.0,0.00020464,2]
[380439608,1755772239534,-151.0,0.00020464,2]
[380439610,1755772239545,-151.0,0.00020464,2]
[380439612,1755772239554,-224.073808,0.00020464,2]
[380439614,1755772239565,-640.540387,0.00020464,2]
[380439616,1755772239575,-151.0,0.00020464,2]
[380439618,1755772239585,-151.0,0.00020464,2]
[380439620,1755772239595,-640.540387,0.00020464,2]
[380439622,1755772239605,-151.0,0.00020464,2]
[380439624,1755772239614,-151.0,0.00020464,2]
[380439626,1755772239624,-151.0,0.00020464,2]
[380439628,1755772239634,-151.0,0.00020464,2]
[380439630,1755772239644,-151.0,0.00020464,2]
[380439632,1755772239654,-151.0,0.00020464,2]
[380439634,1755772239663,-640.540387,0.00020464,2]
[380439636,1755772239673,-640.540387,0.00020464,2]
[380439638,1755772239683,-151.0,0.00020464,2]
[380439640,1755772239693,-152.994243,0.00020464,2]
[380439642,1755772239703,-151.0,0.00020464,2]